bitfinex-derivatives/quotes_SOLF0:USTF0_20251023
["timestamp","ask_amount","ask_price","bid_price","bid_amount"]
[1761195991901,2.84,184.1,184.06,2.72]
[1761195992796,6.95813254,184.11,184.06,2.72]
[1761195993004,2.84,184.12,184.08,2.72]
[1761195993203,6.95805486,184.11,184.08,2.72]
[1761195993402,2.84,184.11,184.08,2.72]
[1761195994698,2.84,184.14,184.08,2.72]
[1761195994894,4.11772995,184.13,184.1,2.72]
[1761195995097,4.11772995,184.12,184.1,2.72]
[1761195995293,6.95772995,184.13,184.1,2.72]
[1761195995506,2.84,184.13,184.1,2.72]
[1761195997508,7.56087143,184.16,184.1,2.72]
[1761195997809,2.84,184.14,184.1,2.72]
[1761195998008,4.11678343,184.13,184.1,2.72]
[1761195998307,2.84,184.14,184.1,2.72]
[1761195998506,4.1110772,184.13,184.1,2.72]
[1761195998708,2.84,184.14,184.1,2.72]
[1761195999007,4.1110772,184.13,184.1,2.72]
[1761195999207,2.84,184.14,184.1,2.72]
[1761195999405,4.10979399,184.15,184.11,6.19551735]
[1761195999604,2.84,184.15,184.03,2.72]
[1761195999802,4.10979399,184.14,184.09,2.72]
[1761196000008,2.84,184.14,184.09,2.72]
[1761196000303,2.84,184.14,184.1,2.72]
[1761196000504,6.94979399,184.14,184.1,2.72]
[1761196000701,2.84,184.14,184.1,2.72]
[1761196001106,6.94871193,184.14,184.1,2.72]
[1761196001309,2.84,184.14,184.1,2.72]
[1761196002112,6.9478013,184.14,184.1,2.72]
[1761196002314,2.84,184.14,184.1,2.72]
[1761196002710,6.94731741,184.14,184.1,2.72]
[1761196002910,2.84,184.14,184.1,2.72]
[1761196003311,6.94731709,184.14,184.1,2.72]
[1761196003608,4.85685828,184.16,184.11,2.72]
[1761196003808,2.84,184.14,184.06,1.30811735]
[1761196004009,6.94658027,184.14,184.08,1.30811735]
[1761196004208,2.84,184.14,184.08,4.02811735]
[1761196004507,6.94637755,184.14,184.08,4.02811735]
[1761196004713,2.84,184.13,184.09,2.72]
[1761196005613,6.94637788,184.13,184.09,2.72]
[1761196005813,2.84,184.13,184.09,2.72]
[1761196006409,4.82942363,184.15,184.09,2.72]
[1761196006712,2.84,184.16,184.09,2.72]
[1761196007206,6.94569507,184.16,184.09,2.72]
[1761196007409,2.84,184.16,184.11,2.72]
[1761196010617,2.84,184.15,184.08,7.6083]
[1761196010811,8.93164517,184.15,184.08,32.1483]
[1761196011118,2.84,184.14,184.08,32.1483]
[1761196012216,1.30811735,184.16,184.09,1.30811735]
[1761196012518,2.84,184.15,184.1,2.72]
[1761196012821,2.84,184.14,184.1,2.72]
[1761196016621,2.84,184.14,184.08,29.4283]
[1761196016930,2.84,184.14,184.08,4.8883]
[1761196017330,2.84,184.13,184.07,4.02811735]
[1761196020032,4.10889903,184.13,184.07,4.02811735]
[1761196020331,2.78,184.12,184.07,4.02811735]
[1761196021032,2.78,184.12,184.08,2.77]
[1761196021533,11.69065765,184.15,184.08,2.77]
[1761196021829,11.69065765,184.14,184.1,2.77]
[1761196022034,2.78,184.14,184.1,2.77]
[1761196022626,4.11940976,184.13,184.1,2.77]
[1761196022933,2.78,184.13,184.1,2.77]
[1761196028238,4.12552142,184.12,184.1,2.77]
[1761196028431,2.78,184.12,184.1,2.77]
[1761196030335,4.12928668,184.11,184.1,2.77]
[1761196036541,2.78,184.12,184.1,2.77]
[1761196037338,4.11802763,184.11,184.1,2.77]
[1761196037536,4.11802763,184.11,184.09,4.07811735]
[1761196037741,2.78,184.14,184.09,4.07811735]
[1761196037937,2.78,184.12,184.1,2.77]
[1761196038143,5.04237759,184.16,184.1,2.77]
[1761196038442,4.1179756,184.15,184.14,2.77]
[1761196039945,6.8979756,184.15,184.13,1.30811735]
[1761196040143,4.1179756,184.14,184.13,1.30811735]
[1761196041940,4.1179756,184.14,184.12,44.96]
[1761196042145,2.78,184.15,184.13,44.96]
[1761196042347,6.88374692,184.14,184.13,44.96]
[1761196043645,4.10374692,184.14,184.13,44.96]
[1761196045144,4.10374692,184.14,184.13,47.76]
[1761196045543,4.10374692,184.14,184.13,2.8]
[1761196045743,4.10374692,184.14,184.13,47.76]
[1761196050650,4.575074,184.17,184.13,44.96]
[1761196050855,4.10155418,184.16,184.15,3.99811735]
[1761196052146,2.81,184.21,184.16,2.69]
[1761196052443,4.08557663,184.2,184.19,3.99811735]
[1761196052650,4.05764694,184.22,184.2,2.69]
[1761196052851,2.81,184.25,184.21,3.99811735]
[1761196053052,6.86755928,184.24,184.21,3.99811735]
[1761196053354,4.05755928,184.23,184.21,3.99811735]
[1761196053553,2.81,184.24,184.21,3.99811735]
[1761196053756,4.05445781,184.23,184.21,3.99811735]
[1761196053959,2.81,184.24,184.21,3.99811735]
[1761196054152,4.05445781,184.23,184.21,3.99811735]
[1761196055258,2.81,184.24,184.21,3.99811735]
[1761196055755,2.81,184.27,184.22,2.69]
[1761196055954,4.04997599,184.26,184.24,2.69]
[1761196056257,6.85997599,184.27,184.25,48.93811735]
[1761196056553,2.81,184.27,184.25,48.93811735]
[1761196056758,2.81,184.3,184.26,2.69]
[1761196056957,5.04237759,184.33,184.26,2.69]
[1761196056958,6.85589213,184.29,184.26,2.69]
[1761196057157,6.85589213,184.28,184.26,2.69]
[1761196057358,2.81,184.28,184.26,2.69]
[1761196058654,2.81,184.33,184.26,2.69]
[1761196058851,2.81,184.31,184.26,2.69]
[1761196059159,2.81,184.3,184.27,2.69]
[1761196060056,2.81,184.3,184.24,2.69]
[1761196060247,2.81,184.3,184.25,44.94]
[1761196060648,2.81,184.3,184.25,47.63]
[1761196060847,2.81,184.3,184.25,2.69]
[1761196061054,2.81,184.3,184.26,28.52]
[1761196061852,2.81,184.3,184.26,31.21]
[1761196062654,2.81,184.3,184.27,2.69]
[1761196081487,2.81,184.3,184.22,4.8845]
[1761196081692,2.81,184.3,184.23,2.0399932]
[1761196082182,2.81,184.3,184.21,2.0399932]
[1761196082380,2.81,184.3,184.22,2.83]
[1761196084585,2.81,184.3,184.21,2.0399932]
[1761196084989,2.81,184.3,184.21,4.8699932]
[1761196085282,2.73,184.29,184.21,4.8699932]
[1761196085480,2.73,184.29,184.21,2.0399932]
[1761196085686,2.73,184.29,184.22,2.83]
[1761196086285,2.73,184.29,184.25,2.83]
[1761196092992,2.73,184.29,184.21,2.83]
[1761196093193,2.73,184.29,184.22,2.83]
[1761196093592,2.73,184.28,184.22,2.83]
[1761196094493,2.73,184.27,184.22,2.83]
[1761196095499,2.73,184.25,184.22,2.83]
[1761196095794,2.73,184.24,184.22,2.83]
[1761196097399,6.7540712,184.27,184.22,2.83]
[1761196097595,4.0240712,184.26,184.22,2.83]
[1761196097899,2.73,184.27,184.22,2.83]
[1761196098100,4.02514077,184.26,184.22,2.83]
[1761196098302,7.77237759,184.3,184.23,2.83]
[1761196098497,6.75592887,184.29,184.23,2.83]
[1761196098702,4.02592887,184.28,184.23,2.83]
[1761196098903,7.77237759,184.32,184.23,2.83]
[1761196099202,4.02549154,184.31,184.23,2.83]
[1761196099398,4.02549154,184.3,184.23,2.83]
[1761196099600,4.02549154,184.29,184.23,2.83]
[1761196099797,6.75549154,184.28,184.23,2.83]
[1761196100003,2.73,184.28,184.23,2.83]
[1761196100301,2.73,184.31,184.23,2.83]
[1761196100600,4.02766413,184.3,184.23,2.83]
[1761196100802,4.02766413,184.29,184.23,2.83]
[1761196100999,4.02766413,184.28,184.23,2.83]
[1761196101196,2.73,184.31,184.23,2.83]
[1761196101395,4.02751183,184.3,184.23,2.83]
[1761196101603,4.02751183,184.29,184.23,2.83]
[1761196101898,2.73,184.31,184.23,2.83]
[1761196101899,4.02751183,184.28,184.23,2.83]
[1761196102105,2.73,184.31,184.23,2.83]
[1761196102301,4.02765789,184.3,184.23,2.83]
[1761196102599,4.02765789,184.29,184.23,2.83]
[1761196102802,4.02765789,184.28,184.23,2.83]
[1761196103001,2.73,184.31,184.23,2.83]
[1761196103201,4.02768881,184.3,184.23,2.83]
[1761196103401,4.02768881,184.29,184.23,2.83]
[1761196103595,4.02768881,184.28,184.23,2.83]
[1761196103798,2.73,184.31,184.23,2.83]
[1761196103998,4.02755708,184.3,184.23,2.83]
[1761196104206,4.02755708,184.29,184.23,2.83]
[1761196104408,2.73,184.31,184.23,2.83]
[1761196104600,4.02738111,184.3,184.23,2.83]
[1761196104800,4.02738111,184.29,184.23,2.83]
[1761196105004,2.73,184.31,184.23,2.83]
[1761196105206,4.02738111,184.3,184.24,2.87]
[1761196105403,4.02738111,184.29,184.24,2.87]
[1761196105605,2.73,184.31,184.24,2.87]
[1761196105907,4.02729627,184.3,184.24,2.87]
[1761196106107,4.02729627,184.29,184.24,2.87]
[1761196106302,2.0399932,184.37,184.21,44.92]
[1761196106303,5.04237759,184.34,184.27,2.87]
[1761196106508,2.82,184.32,184.27,2.87]
[1761196106707,6.8469446,184.31,184.27,2.87]
[1761196106906,2.82,184.31,184.27,2.87]
[1761196108203,4.02626553,184.3,184.27,2.87]
[1761196108408,2.82,184.29,184.24,2.87]
[1761196110508,2.66,184.31,184.24,2.87]
[1761196110715,4.0262521,184.3,184.24,2.87]
[1761196111012,2.66,184.31,184.24,2.87]
[1761196111207,4.0262521,184.3,184.24,2.87]
[1761196111413,2.66,184.28,184.22,2.7]
[1761196111612,2.66,184.26,184.22,2.7]
[1761196111913,2.66,184.26,184.15,10.14034569]
[1761196111914,2.66,184.26,184.19,2.7]
[1761196112214,2.66,184.24,184.19,2.7]
[1761196112406,6.68710724,184.23,184.19,2.7]
[1761196112605,2.66,184.23,184.19,2.7]
[1761196115211,2.66,184.26,184.19,2.7]
[1761196115410,4.02298601,184.25,184.19,2.7]
[1761196115616,4.02298601,184.24,184.19,2.7]
[1761196115805,4.02298601,184.25,184.19,2.7]
[1761196116008,4.02298601,184.24,184.19,2.7]
[1761196116322,4.02298601,184.25,184.19,2.7]
[1761196116617,4.02298601,184.24,184.2,2.7]
[1761196116818,4.02298601,184.28,184.2,2.7]
[1761196117118,2.66,184.29,184.21,2.7]
[1761196117310,4.0217583,184.28,184.21,2.7]
[1761196117507,2.66,184.29,184.21,2.7]
[1761196117715,4.02192675,184.28,184.21,2.7]
[1761196117914,2.66,184.29,184.21,2.7]
[1761196118114,4.02192675,184.28,184.21,2.7]
[1761196118315,2.66,184.29,184.21,2.7]
[1761196118511,4.02205664,184.28,184.22,2.7]
[1761196118723,6.68174957,184.28,184.24,2.7]
[1761196118921,2.66,184.28,184.24,2.7]
[1761196119420,4.02234417,184.27,184.24,2.7]
[1761196119618,2.66,184.27,184.21,51.11063447]
[1761196119820,2.66,184.27,184.22,2.7]
[1761196128032,2.66,184.3,184.24,2.7]
[1761196128325,1.30583447,184.32,184.24,2.7]
[1761196128326,6.68297978,184.29,184.24,2.7]
[1761196128629,4.02297978,184.28,184.24,2.7]
[1761196128830,2.66,184.29,184.24,2.7]
[1761196129025,6.68295945,184.28,184.24,2.7]
[1761196129225,2.66,184.28,184.24,2.7]
[1761196132526,2.66,184.3,184.26,2.7]
[1761196132724,6.34821206,184.34,184.28,2.7]
[1761196132725,2.66,184.33,184.28,2.7]
[1761196132924,2.66,184.31,184.28,2.7]
[1761196133127,4.02253362,184.3,184.28,2.7]
[1761196133326,2.66,184.31,184.28,2.7]
[1761196133526,4.02228506,184.3,184.28,2.7]
[1761196133726,2.66,184.31,184.28,2.7]
[1761196133926,4.02228506,184.3,184.28,2.7]
[1761196134129,2.66,184.31,184.28,2.7]
[1761196134327,4.02228506,184.3,184.28,2.7]
[1761196134528,2.66,184.31,184.28,2.7]
[1761196134827,4.02207148,184.3,184.28,2.7]
[1761196135133,2.66,184.31,184.28,2.7]
[1761196135432,4.02199444,184.3,184.28,2.7]
[1761196135633,2.66,184.31,184.28,2.7]
[1761196135829,4.02182082,184.3,184.28,2.7]
[1761196136027,2.66,184.31,184.28,2.7]
[1761196136229,4.02182082,184.3,184.28,2.7]
[1761196136430,2.66,184.31,184.28,2.7]
[1761196136630,4.02163597,184.3,184.28,2.7]
[1761196136829,2.66,184.31,184.28,2.7]
[1761196137034,4.02163597,184.3,184.28,2.7]
[1761196137336,2.66,184.31,184.28,2.7]
[1761196137532,4.0214575,184.3,184.28,2.7]
[1761196137731,2.66,184.31,184.28,2.7]
[1761196137935,6.6814575,184.3,184.27,4.00583447]
[1761196138135,2.66,184.3,184.27,4.00583447]
[1761196140036,2.75,184.33,184.29,1.30583447]
[1761196140239,4.02128395,184.32,184.29,4.01583447]
[1761196140537,6.77128395,184.31,184.29,1.30583447]
[1761196140740,2.75,184.31,184.29,1.30583447]
[1761196143838,4.02144711,184.3,184.29,1.30583447]
[1761196144034,2.75,184.31,184.29,1.30583447]
[1761196145041,2.75,184.31,184.21,2.71]
[1761196145042,2.75,184.29,184.21,2.71]
[1761196145250,2.75,184.27,184.21,2.71]
[1761196145542,2.75,184.25,184.21,2.71]
[1761196146043,2.75,184.25,184.22,4.01583447]
[1761196147942,2.75,184.25,184.22,2.71]
[1761196153445,2.75,184.25,184.22,1.30583447]
[1761196153642,2.75,184.25,184.23,2.71]
[1761196154049,2.75,184.28,184.23,2.71]
[1761196156947,2.75,184.27,184.23,2.71]
[1761196157848,2.75,184.27,184.24,1.30583447]
[1761196159144,2.75,184.27,184.24,4.01583447]
[1761196162554,7.81826645,184.32,184.26,1.30583447]
[1761196162847,10.13453773,184.37,184.2,61.2]
[1761196162848,2.75,184.37,184.31,1.30583447]
[1761196163048,4.02480975,184.36,184.33,4.01583447]
[1761196163352,2.75,184.38,184.35,1.30583447]
[1761196163549,4.02181675,184.37,184.35,4.01583447]
[1761196163854,2.75,184.38,184.35,4.01583447]
[1761196164049,2.75,184.38,184.29,44.92]
[1761196164050,6.71178554,184.37,184.33,4.19583447]
[1761196164252,2.69,184.37,184.34,2.89]
[1761196165755,1.30583447,184.42,184.35,1.30583447]
[1761196165756,6.78559838,184.4,184.35,1.30583447]
[1761196165955,4.09559838,184.39,184.36,2.89]
[1761196166159,4.09559838,184.38,184.36,2.89]
[1761196166356,4.09559838,184.39,184.36,2.89]
[1761196166553,4.09559838,184.38,184.36,2.89]
[1761196166759,4.09559838,184.39,184.36,2.89]
[1761196166955,4.09559838,184.38,184.36,2.89]
[1761196167155,4.09559838,184.39,184.36,2.89]
[1761196167660,2.69,184.4,184.36,2.89]
[1761196168351,2.69,184.43,184.36,2.89]
[1761196168561,6.98822686,184.42,184.36,2.89]
[1761196168856,6.98822686,184.41,184.36,2.89]
[1761196169047,2.9,184.41,184.36,2.89]
[1761196172864,2.9,184.41,184.32,2.76]
[1761196173054,2.9,184.39,184.32,2.76]
[1761196174363,2.9,184.39,184.33,2.76]
[1761196177464,2.9,184.37,184.31,2.76]
[1761196178163,2.9,184.39,184.36,1.30583447]
[1761196178767,2.9,184.39,184.34,2.03802657]
[1761196178966,2.9,184.39,184.34,4.79802657]
[1761196179165,2.9,184.39,184.35,2.76]
[1761196179458,2.9,184.39,184.34,2.03802657]
[1761196179651,2.9,184.39,184.34,4.79802657]
[1761196179860,2.9,184.39,184.35,2.76]
[1761196182465,2.9,184.45,184.38,2.76]
[1761196182659,2.9,184.46,184.38,2.76]
[1761196182865,2.9,184.45,184.38,2.76]
[1761196183557,2.9,184.44,184.38,2.76]
[1761196183758,2.9,184.49,184.41,2.76]
[1761196183964,2.9,184.49,184.43,2.03802657]
[1761196184759,2.9,184.48,184.43,2.03802657]
[1761196186760,2.9,184.48,184.41,2.76]
[1761196186761,2.9,184.48,184.41,4.79802657]
[1761196186963,2.9,184.51,184.41,2.03802657]
[1761196187167,2.9,184.51,184.42,2.76]
[1761196187559,2.9,184.5,184.42,2.76]
[1761196188063,2.9,184.5,184.44,2.03802657]
[1761196188967,2.9,184.49,184.44,2.03802657]
[1761196192365,2.9,184.49,184.44,4.79802657]
[1761196198973,2.7,184.48,184.44,4.79802657]
[1761196201579,2.7,184.48,184.45,2.91]
[1761196201786,2.7,184.51,184.45,2.91]
[1761196204882,2.7,184.5,184.45,2.91]
[1761196205486,2.7,184.5,184.42,2.91]
[1761196205684,2.7,184.48,184.42,2.91]
[1761196206683,6.70715281,184.48,184.42,2.91]
[1761196206888,2.7,184.48,184.42,2.91]
[1761196207088,6.70715281,184.5,184.45,2.91]
[1761196207290,6.70715281,184.49,184.45,2.91]
[1761196207489,2.7,184.49,184.45,2.91]
[1761196208185,6.70715281,184.49,184.45,2.91]
[1761196208384,2.7,184.49,184.45,2.91]
[1761196208989,6.70715281,184.49,184.45,2.91]
[1761196209180,2.7,184.49,184.45,2.91]
[1761196209385,4.00715281,184.51,184.46,2.03802657]
[1761196209586,4.00715281,184.53,184.47,2.91]
[1761196209787,4.00715281,184.52,184.47,2.91]
[1761196209988,4.00715281,184.51,184.47,2.91]
[1761196210293,6.70715281,184.54,184.5,2.91]
[1761196210593,4.00715281,184.53,184.5,2.91]
[1761196210782,4.00715281,184.52,184.5,2.91]
[1761196211093,2.7,184.54,184.5,2.91]
[1761196211094,4.00715281,184.51,184.5,2.91]
[1761196211390,6.70715281,184.54,184.5,2.91]
[1761196211593,2.7,184.54,184.5,2.91]
[1761196212192,6.70715281,184.54,184.5,2.91]
[1761196212384,2.7,184.54,184.5,2.91]
[1761196213189,4.00715281,184.57,184.53,2.91]
[1761196213393,2.7,184.58,184.53,4.94802657]
[1761196214087,2.7,184.58,184.53,2.91]
[1761196214285,2.7,184.58,184.54,2.91]
[1761196216401,2.7,184.58,184.51,2.91]
[1761196216695,2.7,184.58,184.48,2.91]
[1761196216994,2.7,184.57,184.48,2.91]
[1761196218801,2.7,184.56,184.48,2.91]
[1761196220496,2.7,184.56,184.45,4.94802657]
[1761196220802,2.7,184.55,184.45,4.94802657]
[1761196220998,4.00715281,184.55,184.45,4.94802657]
[1761196221195,2.7,184.54,184.45,4.94802657]
[1761196222100,2.7,184.54,184.45,2.91]
[1761196222296,2.7,184.53,184.45,2.91]
[1761196223006,2.7,184.52,184.45,2.91]
[1761196225307,2.7,184.51,184.45,2.91]
[1761196232511,6.80715281,184.54,184.45,2.91]
[1761196232809,4.00715281,184.53,184.46,2.03802657]
[1761196233015,2.8,184.57,184.47,2.79]
[1761196233202,4.01295565,184.56,184.47,2.79]
[1761196233403,4.01295565,184.55,184.47,2.79]
[1761196233709,4.01295565,184.54,184.47,2.79]
[1761196233905,4.01290591,184.56,184.47,2.79]
[1761196234104,4.01290591,184.55,184.47,2.79]
[1761196234305,4.01290591,184.56,184.47,2.79]
[1761196234509,4.01290591,184.55,184.47,2.79]
[1761196234809,4.01290591,184.56,184.47,2.79]
[1761196235010,6.81290591,184.55,184.47,2.79]
[1761196235206,2.8,184.55,184.47,2.79]
[1761196236114,6.8124194,184.55,184.47,2.79]
[1761196236311,2.8,184.55,184.47,2.79]
[1761196237111,6.81238378,184.55,184.47,2.79]
[1761196237306,2.8,184.55,184.47,2.79]
[1761196238212,2.8,184.54,184.47,2.79]
[1761196238809,2.8,184.54,184.49,1.30238696]
[1761196239011,2.8,184.54,184.5,2.79]
[1761196239505,2.8,184.53,184.5,2.79]
[1761196244406,2.8,184.53,184.49,1.30238696]
[1761196244609,2.8,184.52,184.49,4.09238696]
[1761196245813,6.81605623,184.52,184.49,2.79]
[1761196246020,2.8,184.51,184.49,2.79]
[1761196248012,2.8,184.51,184.47,1.30238696]
[1761196248214,2.8,184.49,184.41,4.09238696]
[1761196248410,4.01857978,184.48,184.43,1.30238696]
[1761196248611,2.8,184.48,184.44,2.79]
[1761196251126,4.01889247,184.47,184.44,2.79]
[1761196251327,2.8,184.46,184.44,2.79]
[1761196251729,2.8,184.46,184.42,2.79]
[1761196252732,2.8,184.46,184.39,2.79]
[1761196255339,6.81746595,184.49,184.41,2.79]
[1761196255633,6.81746595,184.48,184.41,2.79]
[1761196256036,4.01746595,184.48,184.41,2.79]
[1761196256234,4.01684986,184.48,184.41,2.79]
[1761196256929,2.8,184.48,184.41,2.79]
[1761196257135,6.81684948,184.48,184.41,2.79]
[1761196258036,4.01684948,184.48,184.43,2.79]
[1761196258336,1.30238696,184.49,184.43,2.79]
[1761196258534,8.04923644,184.49,184.43,2.79]
[1761196258734,4.03238696,184.49,184.43,2.79]
[1761196259234,2.73,184.47,184.43,2.79]
[1761196260539,4.01636175,184.5,184.47,2.72]
[1761196260731,4.01659316,184.53,184.49,2.72]
[1761196260930,4.01659316,184.52,184.49,2.72]
[1761196261125,4.01659316,184.53,184.51,2.72]
[1761196261330,7.78398379,184.57,184.51,2.72]
[1761196261534,2.73,184.55,184.51,2.72]
[1761196261733,4.01721568,184.54,184.51,2.72]
[1761196261936,9.08637075,184.58,184.51,2.72]
[1761196262131,6.7464188,184.57,184.51,2.72]
[1761196262337,6.7464188,184.56,184.51,2.72]
[1761196262642,2.73,184.56,184.51,2.72]
[1761196262841,5.05398379,184.6,184.51,2.72]
[1761196262842,6.72103724,184.57,184.52,2.72]
[1761196263048,3.99103724,184.56,184.52,2.72]
[1761196264640,6.72103724,184.55,184.52,2.72]
[1761196264846,3.99103724,184.56,184.52,2.72]
[1761196265141,1.30238696,184.57,184.52,2.72]
[1761196265339,2.73,184.55,184.52,2.72]
[1761196266136,6.72103724,184.55,184.52,2.72]
[1761196266642,2.73,184.55,184.52,2.72]
[1761196266837,6.72103724,184.55,184.52,2.72]
[1761196267142,2.73,184.55,184.52,2.72]
[1761196269040,6.72103724,184.55,184.52,2.72]
[1761196269346,2.73,184.55,184.52,2.72]
[1761196269543,6.72103724,184.55,184.52,2.72]
[1761196269743,2.73,184.55,184.52,2.72]
[1761196269943,6.72103724,184.55,184.52,2.72]
[1761196270145,2.73,184.55,184.52,2.72]
[1761196270340,6.72103724,184.55,184.52,2.72]
[1761196270541,2.73,184.55,184.52,2.72]
[1761196270742,6.72103724,184.55,184.52,2.72]
[1761196270937,2.73,184.55,184.52,2.72]
[1761196273243,2.73,184.55,184.48,2.72]
[1761196273445,2.73,184.55,184.49,2.72]
[1761196274945,1.30238696,184.56,184.49,2.72]
[1761196275347,3.98808266,184.57,184.46,4.8781]
[1761196275348,6.71808266,184.57,184.51,2.72]
[1761196275551,2.73,184.56,184.51,2.72]
[1761196277658,3.98808266,184.57,184.51,2.72]
[1761196279154,4.03238696,184.58,184.51,2.72]
[1761196279549,8.02046962,184.58,184.51,2.72]
[1761196279749,3.98808266,184.57,184.51,2.72]
[1761196280655,4.03238696,184.58,184.51,2.72]
[1761196281044,8.02046962,184.58,184.51,2.72]
[1761196281249,3.98808266,184.57,184.51,2.72]
[1761196281549,4.03238696,184.58,184.51,2.72]
[1761196282353,8.01874639,184.58,184.51,2.72]
[1761196282554,3.98614341,184.57,184.51,2.72]
[1761196282758,4.03238696,184.58,184.51,2.72]
[1761196283262,2.73,184.57,184.51,2.72]
[1761196285758,2.73,184.55,184.51,2.72]
[1761196289355,4.07238696,184.58,184.51,2.72]
[1761196289548,2.77,184.57,184.51,2.72]
[1761196290356,3.98504791,184.58,184.53,2.83]
[1761196290564,4.07238696,184.62,184.55,2.83]
[1761196290953,8.05660364,184.62,184.55,2.83]
[1761196291157,3.98421668,184.61,184.55,2.83]
[1761196291458,4.07238696,184.62,184.55,2.83]
[1761196292364,2.78,184.62,184.56,1.30238696]
[1761196292766,2.78,184.62,184.56,4.02238696]
[1761196298268,6.76421668,184.62,184.56,4.02238696]
[1761196298467,2.78,184.6,184.57,2.72]
[1761196302376,3.97323111,184.62,184.57,2.72]
[1761196302571,3.97323111,184.61,184.57,2.72]
[1761196302974,2.78,184.61,184.57,2.72]
[1761196304171,3.98079683,184.6,184.57,2.72]
[1761196304872,2.78,184.61,184.57,2.72]
[1761196305378,2.78,184.64,184.57,2.72]
[1761196305576,6.75992721,184.63,184.57,2.72]
[1761196305881,6.75992721,184.62,184.57,2.72]
[1761196306080,3.97992721,184.61,184.57,2.72]
[1761196306280,2.78,184.62,184.57,2.72]
[1761196306485,3.98015839,184.61,184.57,2.72]
[1761196306674,2.78,184.62,184.57,2.72]
[1761196306980,2.78,184.6,184.57,2.72]
[1761196307175,6.76030904,184.6,184.57,2.72]
[1761196307374,2.78,184.6,184.57,2.72]
[1761196308173,6.76004281,184.6,184.57,2.72]
[1761196308372,2.78,184.6,184.57,2.72]
[1761196309482,6.75948098,184.6,184.57,2.72]
[1761196309682,2.78,184.59,184.57,2.72]
[1761196311980,2.78,184.59,184.55,2.72]
[1761196313188,6.75989156,184.59,184.55,2.72]
[1761196313383,2.78,184.58,184.55,2.72]
[1761196313688,2.78,184.58,184.51,2.72]
[1761196314190,7.08740898,184.62,184.51,2.72]
[1761196314191,6.76056131,184.57,184.51,2.72]
[1761196314389,2.78,184.57,184.51,2.72]
[1761196314979,2.78,184.6,184.51,2.72]
[1761196315182,3.97918847,184.59,184.51,2.72]
[1761196315489,3.97918847,184.58,184.51,2.72]
[1761196315790,2.78,184.6,184.51,2.72]
[1761196315791,3.97918847,184.57,184.51,2.72]
[1761196315991,3.97918847,184.59,184.51,2.72]
[1761196316187,3.97918847,184.58,184.51,2.72]
[1761196316390,3.97918847,184.57,184.51,2.72]
[1761196316689,2.78,184.6,184.51,2.72]
[1761196316890,3.97983483,184.59,184.51,2.72]
[1761196317090,3.97983483,184.58,184.51,2.72]
[1761196317287,3.97983483,184.57,184.51,2.72]